﻿Department family,Entity,Date,Expense type,Expense area,Supplier,Transaction number,Amount,VAT registration number
Dept of Health,MHRA,02/12/2020,Help desk and end user support,"Technology, Digital, Data & Delivery",Insight Networking Solutions,5063253,"65,202.02",746075129
Dept of Health,MHRA,02/12/2020,Software & Licences,"Technology, Digital, Data & Delivery",Storm Technologies Ltd,748075,"25,147.20",760609235
Dept of Health,MHRA,07/12/2020,Software & Licences,"Technology, Digital, Data & Delivery",Clearvision (CM) 2005 Ltd,cvuk14907,"25,957.24",881364801
Dept of Health,MHRA,07/12/2020,Contracted Out Services Miscellaneous,"Technology, Digital, Data & Delivery",Credera Limited,INV006125,"160,983.00",283541886
Dept of Health,MHRA,07/12/2020,Subcontracted Laboratory Services,Infectious Disease Diagnostics,Defence Science Technology Laboratories,MST016354,"67,533.28",888805068
Dept of Health,MHRA,07/12/2020,Application Services and Maintenance,"Technology, Digital, Data & Delivery",Genpact (UK) Limited,608273,"69,600.00",849126115
Dept of Health,MHRA,07/12/2020,Contracted Out Services Miscellaneous,Vigilance & Risk Management of Medicines,Red Ant Digital Ltd,INV-08484,"30,000.00",123388322
Dept of Health,MHRA,07/12/2020,Software & Licences,"Technology, Digital, Data & Delivery",Stone Group,1258380,"62,237.76",747878857
Dept of Health,MHRA,09/12/2020,Application Services and Maintenance,"Technology, Digital, Data & Delivery",Accenture (UK) Limited,3003490085,"350,734.07",788629066
Dept of Health,MHRA,09/12/2020,Application Services and Maintenance,"Technology, Digital, Data & Delivery",Accenture (UK) Limited,3003490086,"26,500.01",788629066
Dept of Health,MHRA,09/12/2020,Security,Operations,CIS Security Limited,40765,"51,530.63",206193092
Dept of Health,MHRA,09/12/2020,Infrastructure Services and Maintenance,"Technology, Digital, Data & Delivery",Crown Hosting Data Centres Limited,9713,"30,023.48",207000375
Dept of Health,MHRA,09/12/2020,Placement Fees,Finance & Procurement,Michael Page International Recruitment Limited,INAD10065707A,"30,685.51",354259936
Dept of Health,MHRA,09/12/2020,Software & Licences,"Technology, Digital, Data & Delivery",Oracle Corporation UK Limited,1786602,"99,241.38",391313073
Dept of Health,MHRA,14/12/2020,Electricity,Operations,EDF Energy,8825628,"81,246.83",523041202
Dept of Health,MHRA,16/12/2020,Application Services and Maintenance,"Technology, Digital, Data & Delivery",Accenture (UK) Limited,3003490885,"135,058.90",788629066
Dept of Health,MHRA,16/12/2020,Application Services and Maintenance,"Technology, Digital, Data & Delivery",Accenture (UK) Limited,3003490901,"121,347.36",788629066
Dept of Health,MHRA,16/12/2020,Contracted Out Services Miscellaneous,Vigilance & Risk Management of Medicines,Commonwealth Informatics Inc,GBP62,"54,410.64",
Dept of Health,MHRA,16/12/2020,Gas,Operations,Corona Energy Retail 4 Ltd,15731171,"39,840.20",577704800
Dept of Health,MHRA,16/12/2020,Software & Licences,"Technology, Digital, Data & Delivery",MuleSoft LLC,INV-36300,"362,077.72",
Dept of Health,MHRA,16/12/2020,Infrastructure Services and Maintenance,"Technology, Digital, Data & Delivery",NTT Data UK Ltd,4017601,"185,896.90",159334590
Dept of Health,MHRA,16/12/2020,Infrastructure Services and Maintenance,"Technology, Digital, Data & Delivery",NTT Data UK Ltd,4017602,"50,181.90",159334590
Dept of Health,MHRA,17/12/2020,Contracted Out Services Miscellaneous,Directorate,Ernst & Young LLP,GB01G000139033,"196,740.00",773831408
Dept of Health,MHRA,17/12/2020,Contracted Out Services Miscellaneous,Directorate,Ernst & Young LLP,GB01G000142520,"116,268.00",773831408
Dept of Health,MHRA,21/12/2020,"Service, Integration & Management - Enterprise Architecture","Technology, Digital, Data & Delivery",Ernst & Young LLP,GB01G000132499,"47,076.00",773831408
Dept of Health,MHRA,21/12/2020,"Service, Integration & Management - Enterprise Architecture","Technology, Digital, Data & Delivery",Ernst & Young LLP,GB01G000132542,"51,948.00",773831408
Dept of Health,MHRA,21/12/2020,Software & Licences,"Technology, Digital, Data & Delivery",Oracle Corporation UK Limited,1787353,"95,064.00",391313073
Dept of Health,MHRA,21/12/2020,Application Services and Maintenance,"Technology, Digital, Data & Delivery",Red Ant Digital Ltd,INV-08481,"117,000.00",123388322
Dept of Health,MHRA,21/12/2020,Contracted Out Services Miscellaneous,"Technology, Digital, Data & Delivery",Red Badger Consulting Limited,1290,"36,150.00",990808582
Dept of Health,MHRA,21/12/2020,Software Development,"Technology, Digital, Data & Delivery",Red Badger Consulting Limited,1292,"25,290.00",990808582
Dept of Health,MHRA,23/12/2020,Infrastructure Services and Maintenance,"Technology, Digital, Data & Delivery",Advanced Cyber Solutions Ltd,SI-235,"53,964.75",264174208
Dept of Health,MHRA,23/12/2020,Contracted Out Services Miscellaneous,Directorate,Ernst & Young LLP,GB01G000150551,"84,000.00",773831408
